[Event "*** SCC Grand Prix: Titled Tuesday Blitz"]
[Site "Chess.com"]
[Date "2020.09.08"]
[Round "2"]
[White "LPSupi"]
[Black "Keithonsky"]
[Result "1-0"]
[WhiteElo "2867"]
[BlackElo "2554"]
[TimeControl "180+1"]
[EndTime "10:16:53 PDT"]
[Termination "LPSupi won by resignation"]

1. d4 {[%clk 0:02:41.7]} 1... d5 {[%clk 0:02:54.5]} 2. c4 {[%clk 0:02:41.1]}
2... e6 {[%clk 0:02:54.1]} 3. Nc3 {[%clk 0:02:40.7]} 3... a6 {[%clk 0:02:54.7]}
4. cxd5 {[%clk 0:02:40.3]} 4... exd5 {[%clk 0:02:55.6]} 5. Bf4 {[%clk 0:02:41]}
5... Be6 {[%clk 0:02:52.7]} 6. e3 {[%clk 0:02:40.7]} 6... Nf6 {[%clk 0:02:51.9]}
7. Bd3 {[%clk 0:02:41.1]} 7... Bd6 {[%clk 0:02:51.7]} 8. Nge2 {[%clk 0:02:41.3]}
8... c6 {[%clk 0:02:50.3]} 9. O-O {[%clk 0:02:41.3]} 9... Qc7 {[%clk 0:02:50.6]}
10. f3 {[%clk 0:02:39.9]} 10... Nbd7 {[%clk 0:02:50.7]} 11. Bxd6 {[%clk
0:02:38.7]} 11... Qxd6 {[%clk 0:02:51.6]} 12. e4 {[%clk 0:02:39.6]} 12... dxe4
{[%clk 0:02:45.8]} 13. fxe4 {[%clk 0:02:40.5]} 13... Ng4 {[%clk 0:02:40.9]} 14.
e5 {[%clk 0:02:38]} 14... Qe7 {[%clk 0:02:37]} 15. Qd2 {[%clk 0:02:32.8]} 15...
Rd8 {[%clk 0:02:22.8]} 16. Nf4 {[%clk 0:02:26]} 16... O-O {[%clk 0:02:04.3]} 17.
Rae1 {[%clk 0:02:24.3]} 17... Qb4 {[%clk 0:02:00.3]} 18. Kh1 {[%clk 0:02:17.5]}
18... g6 {[%clk 0:01:58.2]} 19. h3 {[%clk 0:01:52.3]} 19... Qxd4 {[%clk
0:01:51.3]} 20. Re4 {[%clk 0:01:49.9]} 20... Qb6 {[%clk 0:01:40.3]} 21. hxg4
{[%clk 0:01:34.1]} 21... Nc5 {[%clk 0:01:32.1]} 22. Qf2 {[%clk 0:01:33.9]} 22...
Bxg4 {[%clk 0:01:19.8]} 23. Bc4 {[%clk 0:01:21.7]} 23... Nd7 {[%clk 0:01:11.8]}
24. Qh4 {[%clk 0:01:00.1]} 24... Bf5 {[%clk 0:01:04.3]} 25. Ree1 {[%clk
0:00:20.6]} 25... Nc5 {[%clk 0:01:03.9]} 26. Nh5 {[%clk 0:00:17.7]} 26... gxh5
{[%clk 0:01:00]} 27. Rxf5 {[%clk 0:00:17]} 27... Nd3 {[%clk 0:00:56.6]} 28. Qg5+
{[%clk 0:00:16.5]} 1-0

[Event "*** SCC Grand Prix: Titled Tuesday Blitz"]
[Site "Chess.com"]
[Date "2020.09.08"]
[Round "2"]
[White "MVM2008"]
[Black "sodastream007"]
[Result "0-1"]
[WhiteElo "2252"]
[BlackElo "2549"]
[TimeControl "180+1"]
[EndTime "10:16:58 PDT"]
[Termination "sodastream007 won on time"]

1. e4 {[%clk 0:03:00.9]} 1... e5 {[%clk 0:02:59.9]} 2. Nf3 {[%clk 0:03:00.5]}
2... Nc6 {[%clk 0:03:00.4]} 3. Bc4 {[%clk 0:03:00.7]} 3... Bc5 {[%clk
0:02:59.8]} 4. b4 {[%clk 0:03:00.5]} 4... Bxb4 {[%clk 0:02:59.6]} 5. c3 {[%clk
0:03:00.9]} 5... Ba5 {[%clk 0:03:00.2]} 6. d4 {[%clk 0:03:01.2]} 6... exd4
{[%clk 0:02:59.9]} 7. O-O {[%clk 0:03:01.1]} 7... d6 {[%clk 0:02:53.5]} 8. cxd4
{[%clk 0:02:52.2]} 8... Nf6 {[%clk 0:02:37.9]} 9. d5 {[%clk 0:02:00.9]} 9... Ne7
{[%clk 0:02:31.5]} 10. Bb2 {[%clk 0:02:00.3]} 10... O-O {[%clk 0:02:28]} 11.
Nbd2 {[%clk 0:01:32.6]} 11... Ng6 {[%clk 0:02:23.4]} 12. Re1 {[%clk 0:01:23.2]}
12... Bg4 {[%clk 0:02:20.8]} 13. Bb3 {[%clk 0:01:13.2]} 13... Bxf3 {[%clk
0:02:07.5]} 14. gxf3 {[%clk 0:00:44.1]} 14... Nh4 {[%clk 0:02:05.9]} 15. Kh1
{[%clk 0:00:36.8]} 15... Bxd2 {[%clk 0:02:02.1]} 16. Qxd2 {[%clk 0:00:29.7]}
16... Nxf3 {[%clk 0:02:01.7]} 17. Qf4 {[%clk 0:00:23.3]} 17... Nxe1 {[%clk
0:02:00.7]} 18. Rxe1 {[%clk 0:00:24.2]} 18... Nd7 {[%clk 0:01:57.7]} 19. Rg1
{[%clk 0:00:19.9]} 19... f6 {[%clk 0:01:57]} 20. Qg4 {[%clk 0:00:15.3]} 20...
Qe7 {[%clk 0:01:56.6]} 21. Bc2 {[%clk 0:00:09.1]} 21... Ne5 {[%clk 0:01:55.6]}
22. Qg3 {[%clk 0:00:08]} 22... Rf7 {[%clk 0:01:50]} 23. Bc1 {[%clk 0:00:07]}
23... Raf8 {[%clk 0:01:46]} 24. f4 {[%clk 0:00:03.2]} 24... Nd7 {[%clk
0:01:43.8]} 25. Qg2 {[%clk 0:00:02]} 25... Re8 {[%clk 0:01:41.7]} 26. Re1 {[%clk
0:00:01.8]} 26... f5 {[%clk 0:01:39.5]} 27. e5 {[%clk 0:00:02]} 27... dxe5
{[%clk 0:01:39.1]} 28. fxe5 {[%clk 0:00:02.5]} 28... Qh4 {[%clk 0:01:34.5]} 29.
e6 {[%clk 0:00:02.5]} 29... Qxe1+ {[%clk 0:01:33.1]} 30. Qg1 {[%clk 0:00:02.8]}
30... Qa5 {[%clk 0:01:19.1]} 31. exf7+ {[%clk 0:00:02.7]} 31... Kxf7 {[%clk
0:01:20]} 32. Bxf5 {[%clk 0:00:02.9]} 32... Qxd5+ {[%clk 0:01:17.1]} 0-1

[Event "*** SCC Grand Prix: Titled Tuesday Blitz"]
[Site "Chess.com"]
[Date "2020.09.08"]
[Round "2"]
[White "Infernal_XaM"]
[Black "Superfelix"]
[Result "1-0"]
[WhiteElo "2902"]
[BlackElo "2410"]
[TimeControl "180+1"]
[EndTime "10:17:00 PDT"]
[Termination "Infernal_XaM won by resignation"]

1. d4 {[%clk 0:03:00.9]} 1... g6 {[%clk 0:02:59.4]} 2. e4 {[%clk 0:02:58.6]}
2... c6 {[%clk 0:02:59.6]} 3. f4 {[%clk 0:02:57.2]} 3... d5 {[%clk 0:02:59.3]}
4. e5 {[%clk 0:02:57.4]} 4... h5 {[%clk 0:02:58.9]} 5. Nf3 {[%clk 0:02:57.2]}
5... Bg4 {[%clk 0:02:58.9]} 6. Nbd2 {[%clk 0:02:54.7]} 6... Nh6 {[%clk
0:02:58.7]} 7. h3 {[%clk 0:02:50.7]} 7... Bxf3 {[%clk 0:02:58.3]} 8. Nxf3 {[%clk
0:02:51]} 8... e6 {[%clk 0:02:58.6]} 9. Bd3 {[%clk 0:02:46.8]} 9... Nf5 {[%clk
0:02:58.8]} 10. Kf2 {[%clk 0:02:34.3]} 10... h4 {[%clk 0:02:57.4]} 11. c3 {[%clk
0:02:30.5]} 11... Be7 {[%clk 0:02:56.1]} 12. a4 {[%clk 0:02:29.1]} 12... c5
{[%clk 0:02:56]} 13. Re1 {[%clk 0:02:16.7]} 13... Nc6 {[%clk 0:02:52.8]} 14. Kg1
{[%clk 0:02:09.8]} 14... cxd4 {[%clk 0:02:50.2]} 15. Bxf5 {[%clk 0:02:05.1]}
15... gxf5 {[%clk 0:02:39.4]} 16. cxd4 {[%clk 0:02:04.9]} 16... Qb6 {[%clk
0:02:33.4]} 17. Re3 {[%clk 0:02:01.3]} 17... Rg8 {[%clk 0:02:25.3]} 18. Rb3
{[%clk 0:01:56.6]} 18... Qc7 {[%clk 0:02:22.8]} 19. Be3 {[%clk 0:01:56.6]} 19...
b6 {[%clk 0:02:11.3]} 20. Rc3 {[%clk 0:01:53.8]} 20... Qd7 {[%clk 0:01:40]} 21.
Rac1 {[%clk 0:01:41]} 21... Rc8 {[%clk 0:01:34.9]} 22. Qc2 {[%clk 0:01:39.2]}
22... Bc5 {[%clk 0:01:28.3]} 23. dxc5 {[%clk 0:01:36.5]} 23... d4 {[%clk
0:01:28.7]} 24. Rd1 {[%clk 0:01:30]} 24... Nb4 {[%clk 0:01:19]} 25. Qb3 {[%clk
0:01:26.1]} 25... Qb7 {[%clk 0:01:12]} 26. Bxd4 {[%clk 0:01:18.2]} 26... Nd5
{[%clk 0:01:09.7]} 27. c6 {[%clk 0:01:16]} 27... Rxc6 {[%clk 0:01:06.3]} 28.
Rxc6 {[%clk 0:01:14.2]} 28... Qxc6 {[%clk 0:01:07.2]} 29. Qb5 {[%clk 0:01:08.2]}
29... Qxb5 {[%clk 0:00:59.8]} 30. axb5 {[%clk 0:01:09.1]} 30... Nxf4 {[%clk
0:00:59.8]} 31. Nxh4 {[%clk 0:01:07.9]} 31... Nxh3+ {[%clk 0:00:54.9]} 32. Kh2
{[%clk 0:01:06.5]} 32... Nf4 {[%clk 0:00:54.6]} 33. g3 {[%clk 0:01:05.5]} 33...
Ne2 {[%clk 0:00:52.6]} 34. Bf2 {[%clk 0:01:05]} 34... f4 {[%clk 0:00:51.6]} 35.
gxf4 {[%clk 0:01:03.1]} 35... Nxf4 {[%clk 0:00:52]} 36. Rd4 {[%clk 0:00:59.9]}
36... Nd5 {[%clk 0:00:48]} 37. Ra4 {[%clk 0:00:59.5]} 37... Rg5 {[%clk
0:00:44.1]} 38. Nf3 {[%clk 0:00:59.1]} 38... Rf5 {[%clk 0:00:41.1]} 39. Kg3
{[%clk 0:00:59.3]} 39... Nc7 {[%clk 0:00:38.3]} 40. Rxa7 {[%clk 0:00:57.7]}
40... Nxb5 {[%clk 0:00:38.2]} 41. Rb7 {[%clk 0:00:56]} 1-0

[Event "*** SCC Grand Prix: Titled Tuesday Blitz"]
[Site "Chess.com"]
[Date "2020.09.08"]
[Round "2"]
[White "northridgehawk"]
[Black "Goryachkina"]
[Result "0-1"]
[WhiteElo "2311"]
[BlackElo "2608"]
[TimeControl "180+1"]
[EndTime "10:17:01 PDT"]
[Termination "Goryachkina won by resignation"]

1. e4 {[%clk 0:03:00.9]} 1... e6 {[%clk 0:02:59.4]} 2. Nc3 {[%clk 0:02:51.8]}
2... d5 {[%clk 0:02:59.1]} 3. d4 {[%clk 0:02:51.8]} 3... Bb4 {[%clk 0:02:57.7]}
4. Ne2 {[%clk 0:02:50.4]} 4... dxe4 {[%clk 0:02:53.7]} 5. a3 {[%clk 0:02:49.2]}
5... Bxc3+ {[%clk 0:02:53.7]} 6. Nxc3 {[%clk 0:02:48.7]} 6... Nc6 {[%clk
0:02:54.1]} 7. Bb5 {[%clk 0:02:46.9]} 7... Ne7 {[%clk 0:02:50.7]} 8. Nxe4 {[%clk
0:02:37.3]} 8... O-O {[%clk 0:02:49.5]} 9. c3 {[%clk 0:02:37]} 9... Qd5 {[%clk
0:02:39.1]} 10. Bd3 {[%clk 0:02:35]} 10... e5 {[%clk 0:02:37.7]} 11. c4 {[%clk
0:01:45.2]} 11... Qxd4 {[%clk 0:02:34.7]} 12. Be3 {[%clk 0:01:37.1]} 12... Qd8
{[%clk 0:02:30.2]} 13. g4 {[%clk 0:01:15.5]} 13... Ng6 {[%clk 0:01:50.6]} 14. h4
{[%clk 0:01:10.9]} 14... Bxg4 {[%clk 0:01:32.8]} 15. Qxg4 {[%clk 0:01:09.3]}
15... Qxd3 {[%clk 0:01:32.2]} 16. h5 {[%clk 0:01:05.7]} 16... f5 {[%clk
0:01:26.5]} 17. Qg2 {[%clk 0:00:54.1]} 17... Qxe4 {[%clk 0:01:25.8]} 18. Qxe4
{[%clk 0:00:52.8]} 18... fxe4 {[%clk 0:01:26.7]} 19. hxg6 {[%clk 0:00:53.1]}
19... hxg6 {[%clk 0:01:27.4]} 20. Rg1 {[%clk 0:00:52.5]} 20... Rf6 {[%clk
0:01:23.9]} 21. O-O-O {[%clk 0:00:52.3]} 21... Rd8 {[%clk 0:01:16.5]} 22. Rxd8+
{[%clk 0:00:19.6]} 22... Nxd8 {[%clk 0:01:17.4]} 23. Rd1 {[%clk 0:00:19.5]}
23... Nc6 {[%clk 0:01:11.3]} 24. Rd7 {[%clk 0:00:18.4]} 24... Rf7 {[%clk
0:01:10.8]} 25. Rd5 {[%clk 0:00:16.3]} 25... a6 {[%clk 0:01:07.9]} 26. b4 {[%clk
0:00:16.4]} 26... Re7 {[%clk 0:00:54.8]} 27. b5 {[%clk 0:00:15.4]} 27... axb5
{[%clk 0:00:54.9]} 28. cxb5 {[%clk 0:00:16.3]} 28... Na5 {[%clk 0:00:54.6]} 29.
Kb2 {[%clk 0:00:15.6]} 29... Nc4+ {[%clk 0:00:51.2]} 30. Kc3 {[%clk 0:00:15.5]}
30... Nxe3 {[%clk 0:00:51.5]} 31. fxe3 {[%clk 0:00:16.4]} 31... Kf7 {[%clk
0:00:50.7]} 32. Kd2 {[%clk 0:00:16.7]} 32... Ke6 {[%clk 0:00:50.8]} 33. Ke2
{[%clk 0:00:17.3]} 33... Kxd5 {[%clk 0:00:50.9]} 0-1

[Event "*** SCC Grand Prix: Titled Tuesday Blitz"]
[Site "Chess.com"]
[Date "2020.09.08"]
[Round "2"]
[White "Nayemhaque22"]
[Black "enriquebutti"]
[Result "0-1"]
[WhiteElo "2335"]
[BlackElo "1814"]
[TimeControl "180+1"]
[EndTime "10:17:03 PDT"]
[Termination "enriquebutti won by resignation"]

1. e4 {[%clk 0:03:00.9]} 1... c5 {[%clk 0:02:58.3]} 2. Nf3 {[%clk 0:03:00.7]}
2... d6 {[%clk 0:02:58.1]} 3. d4 {[%clk 0:03:00.7]} 3... cxd4 {[%clk 0:02:57.9]}
4. Nxd4 {[%clk 0:03:01.6]} 4... Nf6 {[%clk 0:02:57.8]} 5. Nc3 {[%clk 0:03:01.3]}
5... a6 {[%clk 0:02:57.6]} 6. h3 {[%clk 0:03:00.2]} 6... e6 {[%clk 0:02:57.2]}
7. g4 {[%clk 0:02:58.8]} 7... h6 {[%clk 0:02:56.8]} 8. Be3 {[%clk 0:02:56.6]}
8... g5 {[%clk 0:02:54.4]} 9. Bg2 {[%clk 0:02:51.7]} 9... Nbd7 {[%clk
0:02:53.2]} 10. O-O {[%clk 0:02:51.4]} 10... Ne5 {[%clk 0:02:52.7]} 11. a4
{[%clk 0:02:45.9]} 11... Bd7 {[%clk 0:02:47.5]} 12. a5 {[%clk 0:02:45.4]} 12...
Rc8 {[%clk 0:02:46.7]} 13. Nb3 {[%clk 0:02:22.4]} 13... Nc4 {[%clk 0:02:45.1]}
14. Bd4 {[%clk 0:02:16.8]} 14... e5 {[%clk 0:02:44.5]} 15. Bb6 {[%clk
0:02:13.4]} 15... Nxb6 {[%clk 0:02:43.6]} 16. axb6 {[%clk 0:02:14.2]} 16... Qxb6
{[%clk 0:02:43.4]} 17. Na4 {[%clk 0:02:01.1]} 17... Qc7 {[%clk 0:02:36]} 18. c4
{[%clk 0:01:55.4]} 18... Be7 {[%clk 0:02:14.7]} 19. Qf3 {[%clk 0:01:32.9]} 19...
h5 {[%clk 0:02:11.5]} 20. gxh5 {[%clk 0:01:30]} 20... Nxh5 {[%clk 0:02:10.8]}
21. Rfc1 {[%clk 0:01:26.2]} 21... Nf4 {[%clk 0:02:08.1]} 22. c5 {[%clk
0:01:24.9]} 22... Bxh3 {[%clk 0:01:49.4]} 23. cxd6 {[%clk 0:01:09.1]} 23... Bxg2
{[%clk 0:01:38.1]} 24. Qxg2 {[%clk 0:01:08]} 24... Qxc1+ {[%clk 0:01:30.5]} 25.
Rxc1 {[%clk 0:01:08.2]} 25... Rxc1+ {[%clk 0:01:29.7]} 26. Nxc1 {[%clk
0:01:06.8]} 26... Nxg2 {[%clk 0:01:29]} 27. dxe7 {[%clk 0:00:49.5]} 27... Nf4
{[%clk 0:01:27.2]} 28. Nc5 {[%clk 0:00:48.5]} 28... Kxe7 {[%clk 0:01:25.2]} 29.
b4 {[%clk 0:00:45.2]} 29... Rd8 {[%clk 0:01:19.2]} 30. Kh2 {[%clk 0:00:44.1]}
30... Rd4 {[%clk 0:01:08.5]} 31. Nxb7 {[%clk 0:00:37.6]} 31... Rxb4 {[%clk
0:01:05.1]} 32. Na5 {[%clk 0:00:37]} 32... Rb5 {[%clk 0:00:59.5]} 33. Nc4 {[%clk
0:00:36.3]} 33... Rc5 {[%clk 0:00:56.5]} 34. Nb3 {[%clk 0:00:32.3]} 34... Rxc4
{[%clk 0:00:56.2]} 0-1

[Event "*** SCC Grand Prix: Titled Tuesday Blitz"]
[Site "Chess.com"]
[Date "2020.09.08"]
[Round "2"]
[White "Harsha_Bharathakoti"]
[Black "Natalya_Buksa"]
[Result "1-0"]
[WhiteElo "2807"]
[BlackElo "2522"]
[TimeControl "180+1"]
[EndTime "10:17:05 PDT"]
[Termination "Harsha_Bharathakoti won by checkmate"]

1. c4 {[%clk 0:03:00.9]} 1... e6 {[%clk 0:02:59.8]} 2. Nf3 {[%clk 0:02:54.7]}
2... d5 {[%clk 0:03:00.1]} 3. d4 {[%clk 0:02:55.4]} 3... Nf6 {[%clk 0:03:00.2]}
4. Nc3 {[%clk 0:02:55.3]} 4... Nbd7 {[%clk 0:02:58.5]} 5. Qc2 {[%clk 0:02:45.7]}
5... c5 {[%clk 0:02:54.3]} 6. cxd5 {[%clk 0:02:42.7]} 6... Nxd5 {[%clk
0:02:53.6]} 7. Nxd5 {[%clk 0:02:34.7]} 7... exd5 {[%clk 0:02:54.5]} 8. g3 {[%clk
0:02:29.8]} 8... Bd6 {[%clk 0:02:48.3]} 9. Bg2 {[%clk 0:02:29.2]} 9... O-O
{[%clk 0:02:48.8]} 10. O-O {[%clk 0:02:29.1]} 10... c4 {[%clk 0:02:44.9]} 11. b3
{[%clk 0:01:54.5]} 11... cxb3 {[%clk 0:02:37.2]} 12. Qxb3 {[%clk 0:01:50]} 12...
Nb6 {[%clk 0:02:35.1]} 13. Ne5 {[%clk 0:01:49]} 13... Be6 {[%clk 0:02:34.4]} 14.
Bf4 {[%clk 0:01:48.4]} 14... Rb8 {[%clk 0:02:28]} 15. Nd3 {[%clk 0:01:41]} 15...
Nc4 {[%clk 0:02:21.6]} 16. Rfc1 {[%clk 0:01:39.3]} 16... b5 {[%clk 0:02:14.5]}
17. Bxd6 {[%clk 0:01:38.1]} 17... Qxd6 {[%clk 0:02:14]} 18. Nc5 {[%clk
0:01:36.8]} 18... a5 {[%clk 0:02:12.3]} 19. a3 {[%clk 0:01:35.9]} 19... h5
{[%clk 0:02:09]} 20. h4 {[%clk 0:01:29]} 20... Rfe8 {[%clk 0:02:04]} 21. e3
{[%clk 0:01:26.8]} 21... Bg4 {[%clk 0:01:51.7]} 22. Qd3 {[%clk 0:01:25.5]} 22...
Nxe3 {[%clk 0:01:20.8]} 23. fxe3 {[%clk 0:01:25.1]} 23... Qxg3 {[%clk
0:01:21.2]} 24. e4 {[%clk 0:01:25.2]} 24... Qxd3 {[%clk 0:00:49.3]} 25. Nxd3
{[%clk 0:01:26.1]} 25... dxe4 {[%clk 0:00:50.2]} 26. Ne5 {[%clk 0:01:26.3]}
26... Rbd8 {[%clk 0:00:50]} 27. Nxg4 {[%clk 0:01:13.4]} 27... hxg4 {[%clk
0:00:49.1]} 28. Rab1 {[%clk 0:01:14]} 28... Rxd4 {[%clk 0:00:45.9]} 29. Rxb5
{[%clk 0:01:13.8]} 29... Ra4 {[%clk 0:00:46.3]} 30. Rb3 {[%clk 0:01:12.5]} 30...
f5 {[%clk 0:00:41.1]} 31. Rb5 {[%clk 0:01:08.5]} 31... f4 {[%clk 0:00:38.8]} 32.
Rg5 {[%clk 0:01:00.9]} 32... f3 {[%clk 0:00:25.7]} 33. Rc7 {[%clk 0:00:59.1]}
33... fxg2 {[%clk 0:00:13.7]} 34. Rgxg7+ {[%clk 0:00:59.3]} 34... Kf8 {[%clk
0:00:14.1]} 35. Rcf7# {[%clk 0:00:58.7]} 1-0

[Event "*** SCC Grand Prix: Titled Tuesday Blitz"]
[Site "Chess.com"]
[Date "2020.09.08"]
[Round "2"]
[White "sokidze"]
[Black "nau64"]
[Result "1-0"]
[WhiteElo "2605"]
[BlackElo "2309"]
[TimeControl "180+1"]
[EndTime "10:17:05 PDT"]
[Termination "sokidze won on time"]

1. d4 {[%clk 0:03:00.9]} 1... Nf6 {[%clk 0:02:59.4]} 2. g3 {[%clk 0:03:01]} 2...
g6 {[%clk 0:02:59.5]} 3. Bg2 {[%clk 0:03:01.4]} 3... d5 {[%clk 0:02:59.8]} 4.
Nf3 {[%clk 0:03:01]} 4... Bg7 {[%clk 0:02:59.8]} 5. c4 {[%clk 0:03:01.6]} 5...
O-O {[%clk 0:02:58.9]} 6. O-O {[%clk 0:02:57.4]} 6... c5 {[%clk 0:02:51.1]} 7.
Nc3 {[%clk 0:02:43.5]} 7... cxd4 {[%clk 0:02:50.6]} 8. Nxd4 {[%clk 0:02:38.6]}
8... dxc4 {[%clk 0:02:43]} 9. Ndb5 {[%clk 0:02:19.2]} 9... Nc6 {[%clk 0:02:22]}
10. Be3 {[%clk 0:02:00.1]} 10... Qa5 {[%clk 0:01:28.2]} 11. Bf4 {[%clk
0:01:20.3]} 11... e5 {[%clk 0:01:08.3]} 12. Bg5 {[%clk 0:01:19.2]} 12... Rd8
{[%clk 0:00:20.3]} 13. Qa4 {[%clk 0:00:55.9]} 13... a6 {[%clk 0:00:09.7]} 14.
Qxa5 {[%clk 0:00:44.1]} 14... Nxa5 {[%clk 0:00:10.6]} 15. Nc7 {[%clk 0:00:44.7]}
15... Rb8 {[%clk 0:00:09.6]} 16. N7d5 {[%clk 0:00:44.7]} 16... Rd6 {[%clk
0:00:08]} 17. Bxf6 {[%clk 0:00:34.9]} 17... Bxf6 {[%clk 0:00:08.9]} 18. Ne4
{[%clk 0:00:35.5]} 18... Re6 {[%clk 0:00:04]} 19. Nexf6+ {[%clk 0:00:34]} 19...
Kg7 {[%clk 0:00:01]} 20. Ne4 {[%clk 0:00:34]} 1-0

[Event "*** SCC Grand Prix: Titled Tuesday Blitz"]
[Site "Chess.com"]
[Date "2020.09.08"]
[Round "2"]
[White "woodpusher52"]
[Black "Gabrielian_Artur"]
[Result "0-1"]
[WhiteElo "2474"]
[BlackElo "2691"]
[TimeControl "180+1"]
[EndTime "10:17:07 PDT"]
[Termination "Gabrielian_Artur won on time"]

1. d4 {[%clk 0:03:00.8]} 1... Nf6 {[%clk 0:02:59.6]} 2. c4 {[%clk 0:03:00.5]}
2... c5 {[%clk 0:02:59.9]} 3. Nf3 {[%clk 0:02:58.5]} 3... e6 {[%clk 0:02:58.5]}
4. g3 {[%clk 0:02:48.6]} 4... cxd4 {[%clk 0:02:58.1]} 5. Nxd4 {[%clk 0:02:49.1]}
5... d5 {[%clk 0:02:58.6]} 6. Bg2 {[%clk 0:02:43.6]} 6... e5 {[%clk 0:02:58.8]}
7. Nc2 {[%clk 0:02:41.6]} 7... d4 {[%clk 0:02:56.8]} 8. O-O {[%clk 0:02:41.1]}
8... Nc6 {[%clk 0:02:56.3]} 9. a3 {[%clk 0:02:29.6]} 9... a5 {[%clk 0:02:55.7]}
10. b3 {[%clk 0:02:26.4]} 10... Bc5 {[%clk 0:02:52.9]} 11. Bb2 {[%clk
0:02:23.3]} 11... O-O {[%clk 0:02:51.7]} 12. Nd2 {[%clk 0:02:19.2]} 12... Bf5
{[%clk 0:02:51.1]} 13. Bxc6 {[%clk 0:01:43.3]} 13... bxc6 {[%clk 0:02:50.7]} 14.
b4 {[%clk 0:01:43.7]} 14... Be7 {[%clk 0:02:37.6]} 15. c5 {[%clk 0:01:41.7]}
15... Bh3 {[%clk 0:02:32.6]} 16. Re1 {[%clk 0:01:40.4]} 16... Qd5 {[%clk
0:02:32.6]} 17. e4 {[%clk 0:01:24.7]} 17... Qe6 {[%clk 0:02:22.8]} 18. f4 {[%clk
0:01:16.8]} 18... Rfd8 {[%clk 0:02:18]} 19. fxe5 {[%clk 0:01:14.5]} 19... Bg4
{[%clk 0:01:51.8]} 20. Qc1 {[%clk 0:00:45.4]} 20... Qxe5 {[%clk 0:01:47.4]} 21.
Nc4 {[%clk 0:00:42.6]} 21... Qe6 {[%clk 0:01:42.8]} 22. Nxd4 {[%clk 0:00:39.6]}
22... Rxd4 {[%clk 0:01:27.9]} 23. Bxd4 {[%clk 0:00:40.5]} 23... axb4 {[%clk
0:01:26.3]} 24. axb4 {[%clk 0:00:36.6]} 24... Rd8 {[%clk 0:01:25.1]} 25. Qe3
{[%clk 0:00:32]} 25... Qxc4 {[%clk 0:01:24.5]} 26. Be5 {[%clk 0:00:20.5]} 26...
Qxb4 {[%clk 0:01:19.7]} 27. Rac1 {[%clk 0:00:15.4]} 27... h5 {[%clk 0:01:16.3]}
28. Qf4 {[%clk 0:00:15.1]} 28... Bxc5+ {[%clk 0:01:13.3]} 29. Kh1 {[%clk
0:00:14.2]} 29... Be7 {[%clk 0:01:08.6]} 30. Rxc6 {[%clk 0:00:12.2]} 30... Qxe1+
{[%clk 0:01:08.6]} 31. Kg2 {[%clk 0:00:10.8]} 31... Qxe4+ {[%clk 0:01:08.3]} 32.
Qxe4 {[%clk 0:00:10.3]} 32... Nxe4 {[%clk 0:01:09.2]} 33. Rc7 {[%clk 0:00:03.3]}
33... Bd6 {[%clk 0:01:08.2]} 34. Bxd6 {[%clk 0:00:02]} 34... Rxd6 {[%clk
0:01:08.4]} 0-1

[Event "*** SCC Grand Prix: Titled Tuesday Blitz"]
[Site "Chess.com"]
[Date "2020.09.08"]
[Round "2"]
[White "Yashasd1995"]
[Black "UmarovSabir"]
[Result "1-0"]
[WhiteElo "2675"]
[BlackElo "2382"]
[TimeControl "180+1"]
[EndTime "10:17:07 PDT"]
[Termination "Yashasd1995 won on time"]

1. b3 {[%clk 0:03:00.9]} 1... e5 {[%clk 0:02:50.9]} 2. Bb2 {[%clk 0:03:00.5]}
2... Nc6 {[%clk 0:02:50.6]} 3. e3 {[%clk 0:03:00.5]} 3... g6 {[%clk 0:02:43.4]}
4. Bb5 {[%clk 0:02:58.9]} 4... Bg7 {[%clk 0:02:43.2]} 5. Nf3 {[%clk 0:02:58.4]}
5... Nge7 {[%clk 0:02:42.3]} 6. d4 {[%clk 0:02:58.3]} 6... exd4 {[%clk
0:02:28.4]} 7. Nxd4 {[%clk 0:02:50.5]} 7... O-O {[%clk 0:02:19.3]} 8. O-O {[%clk
0:02:49.4]} 8... Nf5 {[%clk 0:01:57.1]} 9. Nxc6 {[%clk 0:02:31.1]} 9... bxc6
{[%clk 0:01:47.6]} 10. Bxg7 {[%clk 0:02:24.9]} 10... Kxg7 {[%clk 0:01:45.7]} 11.
Bd3 {[%clk 0:02:22.6]} 11... Qf6 {[%clk 0:01:44.4]} 12. Nd2 {[%clk 0:02:20.7]}
12... d5 {[%clk 0:01:40.9]} 13. c4 {[%clk 0:02:16.1]} 13... d4 {[%clk 0:01:33]}
14. Ne4 {[%clk 0:02:06.3]} 14... Qe5 {[%clk 0:01:25.4]} 15. exd4 {[%clk
0:02:00.8]} 15... Qxd4 {[%clk 0:01:02.1]} 16. Qc2 {[%clk 0:01:58.9]} 16... Nd6
{[%clk 0:00:44.3]} 17. Rad1 {[%clk 0:01:53]} 17... Nxe4 {[%clk 0:00:42.5]} 18.
Bxe4 {[%clk 0:01:53.9]} 18... Qf6 {[%clk 0:00:42.8]} 19. h3 {[%clk 0:01:44.6]}
19... a5 {[%clk 0:00:40.7]} 20. Rfe1 {[%clk 0:01:40.6]} 20... Re8 {[%clk
0:00:27.5]} 21. Qd2 {[%clk 0:01:16.2]} 21... a4 {[%clk 0:00:22.8]} 22. b4 {[%clk
0:01:15.2]} 22... a3 {[%clk 0:00:22.4]} 23. b5 {[%clk 0:01:15.1]} 23... Bb7
{[%clk 0:00:14.8]} 24. Bf3 {[%clk 0:01:13.8]} 24... Rxe1+ {[%clk 0:00:13.7]} 25.
Rxe1 {[%clk 0:01:11.6]} 25... Rd8 {[%clk 0:00:11.8]} 26. Qa5 {[%clk 0:01:10.6]}
26... Qb2 {[%clk 0:00:07]} 27. bxc6 {[%clk 0:01:06.9]} 27... Bc8 {[%clk
0:00:04.8]} 28. Qxc7 {[%clk 0:01:00.7]} 28... Qd2 {[%clk 0:00:02.2]} 29. Rd1
{[%clk 0:00:53.1]} 1-0